Workbook

Sheet Ngân sách Gia đình Budget
B1: NGÂN SÁCH GIA ĐÌNH SMITH
B2: NĂM: | C2: 2013
B4: TIỀN MẶT CÓ SẴN | C4: THÁNG 1 | D4: THÁNG 2 | E4: THÁNG 3 | F4: THÁNG 4 | G4: THÁNG 5 | H4: THÁNG 6 | I4: THÁNG 7 | J4: THÁNG 8 | K4: THÁNG 9 | L4: THÁNG 10 | M4: THÁNG 11 | N4: THÁNG 12 | O4: TỔNG SỐ TỚI NGÀY HÔM NAY | P4: XU HƯỚNG
B5: Tiền mặt Hàng tháng | C5: =tblIncome[[#Totals],[THÁNG 1]]-tblExpenses[[#Totals],[THÁNG 1]] -> 25,376,000 ₫ | D5: =tblIncome[[#Totals],[THÁNG 2]]-tblExpenses[[#Totals],[THÁNG 2]] -> 33,009,600 ₫ | E5: =tblIncome[[#Totals],[THÁNG 3]]-tblExpenses[[#Totals],[THÁNG 3]] -> 24,419,200 ₫ | F5: =tblIncome[[#Totals],[THÁNG 4]]-tblExpenses[[#Totals],[THÁNG 4]] -> 30,056,000 ₫ | G5: =tblIncome[[#Totals],[THÁNG 5]]-tblExpenses[[#Totals],[THÁNG 5]] -> 28,932,800 ₫ | H5: =tblIncome[[#Totals],[THÁNG 6]]-tblExpenses[[#Totals],[THÁNG 6]] -> 29,827,200 ₫ | I5: =tblIncome[[#Totals],[THÁNG 7]]-tblExpenses[[#Totals],[THÁNG 7]] -> 22,568,000 ₫ | J5: =tblIncome[[#Totals],[THÁNG 8]]-tblExpenses[[#Totals],[THÁNG 8]] -> 24,564,800 ₫ | K5: =tblIncome[[#Totals],[THÁNG 9]]-tblExpenses[[#Totals],[THÁNG 9]] -> 30,056,000 ₫ | L5: =tblIncome[[#Totals],[THÁNG 10]]-tblExpenses[[#Totals],[THÁNG 10]] -> 30,492,800 ₫ | M5: =tblIncome[[#Totals],[THÁNG 11]]-tblExpenses[[#Totals],[THÁNG 11]] -> 0 | N5: =tblIncome[[#Totals],[THÁNG 12]]-tblExpenses[[#Totals],[THÁNG 12]] -> 0 | O5: =tblIncome[[#Totals],[TỔNG SỐ TỚI NGÀY HÔM NAY]]-tblExpenses[[#Totals],[TỔNG SỐ TỚI NGÀY HÔM NAY]] -> 279,302,400 ₫
B7: LOẠI THU NHẬP | C7: THÁNG 1 | D7: THÁNG 2 | E7: THÁNG 3 | F7: THÁNG 4 | G7: THÁNG 5 | H7: THÁNG 6 | I7: THÁNG 7 | J7: THÁNG 8 | K7: THÁNG 9 | L7: THÁNG 10 | M7: THÁNG 11 | N7: THÁNG 12 | O7: TỔNG SỐ TỚI NGÀY HÔM NAY | P7: XU HƯỚNG
B8: Thu nhập 1 | C8: 83,200,000 ₫ | D8: 91,728,000 ₫ | E8: 83,595,200 ₫ | F8: 88,670,400 ₫ | G8: 85,758,400 ₫ | H8: 89,606,400 ₫ | I8: 86,569,600 ₫ | J8: 86,632,000 ₫ | K8: 88,358,400 ₫ | L8: 89,939,200 ₫ | O8: =SUM(tblIncome[[#This Row],[THÁNG 1]:[THÁNG 12]]) -> 874,057,600 ₫
B9: Thu nhập 2 | C9: 5,720,000 ₫ | D9: 6,156,800 ₫ | E9: 5,220,800 ₫ | F9: 5,595,200 ₫ | G9: 5,241,600 ₫ | H9: 5,241,600 ₫ | I9: 5,449,600 ₫ | J9: 5,366,400 ₫ | K9: 6,156,800 ₫ | L9: 5,616,000 ₫ | O9: =SUM(tblIncome[[#This Row],[THÁNG 1]:[THÁNG 12]]) -> 55,764,800 ₫
B10: Thu nhập khác | C10: 10,400,000 ₫ | D10: 10,545,600 ₫ | E10: 11,460,800 ₫ | F10: 11,564,800 ₫ | G10: 12,230,400 ₫ | H10: 11,107,200 ₫ | I10: 11,086,400 ₫ | J10: 12,168,000 ₫ | K10: 11,648,000 ₫ | L10: 10,816,000 ₫ | O10: =SUM(tblIncome[[#This Row],[THÁNG 1]:[THÁNG 12]]) -> 113,027,200 ₫
B11: TỔNG THU NHẬP | C11: =SUBTOTAL(109,tblIncome[THÁNG 1]) -> 99,320,000 ₫ | D11: =SUBTOTAL(109,tblIncome[THÁNG 2]) -> 108,430,400 ₫ | E11: =SUBTOTAL(109,tblIncome[THÁNG 3]) -> 100,276,800 ₫ | F11: =SUBTOTAL(109,tblIncome[THÁNG 4]) -> 105,830,400 ₫ | G11: =SUBTOTAL(109,tblIncome[THÁNG 5]) -> 103,230,400 ₫ | H11: =SUBTOTAL(109,tblIncome[THÁNG 6]) -> 105,955,200 ₫ | I11: =SUBTOTAL(109,tblIncome[THÁNG 7]) -> 103,105,600 ₫ | J11: =SUBTOTAL(109,tblIncome[THÁNG 8]) -> 104,166,400 ₫ | K11: =SUBTOTAL(109,tblIncome[THÁNG 9]) -> 106,163,200 ₫ | L11: =SUBTOTAL(109,tblIncome[THÁNG 10]) -> 106,371,200 ₫ | M11: =SUBTOTAL(109,tblIncome[THÁNG 11]) -> 0 | N11: =SUBTOTAL(109,tblIncome[THÁNG 12]) -> 0 | O11: =SUBTOTAL(109,tblIncome[TỔNG SỐ TỚI NGÀY HÔM NAY]) -> 1,042,849,600 ₫
B13: LOẠI THU NHẬP | C13: THÁNG 1 | D13: THÁNG 2 | E13: THÁNG 3 | F13: THÁNG 4 | G13: THÁNG 5 | H13: THÁNG 6 | I13: THÁNG 7 | J13: THÁNG 8 | K13: THÁNG 9 | L13: THÁNG 10 | M13: THÁNG 11 | N13: THÁNG 12 | O13: TỔNG SỐ TỚI NGÀY HÔM NAY | P13: XU HƯỚNG
B14: Nhà ở | C14: 31,200,000 ₫ | D14: 31,200,000 ₫ | E14: 31,200,000 ₫ | F14: 31,200,000 ₫ | G14: 31,200,000 ₫ | H14: 31,200,000 ₫ | I14: 31,200,000 ₫ | J14: 31,200,000 ₫ | K14: 31,200,000 ₫ | L14: 31,200,000 ₫ | O14: =SUM(tblExpenses[[#This Row],[THÁNG 1]:[THÁNG 12]]) -> 312,000,000 ₫
B15: Tạp phẩm | C15: 5,200,000 ₫ | D15: 6,884,800 ₫ | E15: 6,219,200 ₫ | F15: 6,926,400 ₫ | G15: 6,739,200 ₫ | H15: 6,510,400 ₫ | I15: 7,030,400 ₫ | J15: 4,680,000 ₫ | K15: 5,366,400 ₫ | L15: 6,697,600 ₫ | O15: =SUM(tblExpenses[[#This Row],[THÁNG 1]:[THÁNG 12]]) -> 62,254,400 ₫
B16: Thanh toán tiền xe hơi | C16: 7,176,000 ₫ | D16: 7,176,000 ₫ | E16: 7,176,000 ₫ | F16: 7,176,000 ₫ | G16: 7,176,000 ₫ | H16: 7,176,000 ₫ | I16: 7,176,000 ₫ | J16: 7,176,000 ₫ | K16: 7,176,000 ₫ | L16: 7,176,000 ₫ | O16: =SUM(tblExpenses[[#This Row],[THÁNG 1]:[THÁNG 12]]) -> 71,760,000 ₫
B17: Bảo hiểm | C17: 2,496,000 ₫ | D17: 2,496,000 ₫ | E17: 2,496,000 ₫ | F17: 2,496,000 ₫ | G17: 2,496,000 ₫ | H17: 2,496,000 ₫ | I17: 2,496,000 ₫ | J17: 2,496,000 ₫ | K17: 2,496,000 ₫ | L17: 2,496,000 ₫ | O17: =SUM(tblExpenses[[#This Row],[THÁNG 1]:[THÁNG 12]]) -> 24,960,000 ₫
B18: Điện thoại nhà | C18: 1,040,000 ₫ | D18: 1,040,000 ₫ | E18: 1,040,000 ₫ | F18: 1,040,000 ₫ | G18: 1,040,000 ₫ | H18: 1,040,000 ₫ | I18: 1,040,000 ₫ | J18: 1,040,000 ₫ | K18: 1,040,000 ₫ | L18: 1,040,000 ₫ | O18: =SUM(tblExpenses[[#This Row],[THÁNG 1]:[THÁNG 12]]) -> 10,400,000 ₫
B19: Điện thoại di động | C19: 1,497,600 ₫ | D19: 1,456,000 ₫ | E19: 1,664,000 ₫ | F19: 1,456,000 ₫ | G19: 1,560,000 ₫ | H19: 1,664,000 ₫ | I19: 1,872,000 ₫ | J19: 1,518,400 ₫ | K19: 1,560,000 ₫ | L19: 1,456,000 ₫ | O19: =SUM(tblExpenses[[#This Row],[THÁNG 1]:[THÁNG 12]]) -> 15,704,000 ₫
B20: Cáp TV | C20: 1,248,000 ₫ | D20: 1,310,400 ₫ | E20: 1,352,000 ₫ | F20: 1,248,000 ₫ | G20: 1,352,000 ₫ | H20: 1,248,000 ₫ | I20: 1,310,400 ₫ | J20: 1,248,000 ₫ | K20: 1,310,400 ₫ | L20: 1,248,000 ₫ | O20: =SUM(tblExpenses[[#This Row],[THÁNG 1]:[THÁNG 12]]) -> 12,875,200 ₫
B21: Internet | C21: 936,000 ₫ | D21: 936,000 ₫ | E21: 936,000 ₫ | F21: 936,000 ₫ | G21: 936,000 ₫ | H21: 936,000 ₫ | I21: 936,000 ₫ | J21: 936,000 ₫ | K21: 936,000 ₫ | L21: 936,000 ₫ | O21: =SUM(tblExpenses[[#This Row],[THÁNG 1]:[THÁNG 12]]) -> 9,360,000 ₫
B22: Điện | C22: 3,224,000 ₫ | D22: 3,224,000 ₫ | E22: 3,286,400 ₫ | F22: 3,328,000 ₫ | G22: 3,432,000 ₫ | H22: 4,160,000 ₫ | I22: 7,072,000 ₫ | J22: 7,280,000 ₫ | K22: 4,992,000 ₫ | L22: 3,744,000 ₫ | O22: =SUM(tblExpenses[[#This Row],[THÁNG 1]:[THÁNG 12]]) -> 43,742,400 ₫
B23: Nước | C23: 728,000 ₫ | D23: 728,000 ₫ | E23: 769,600 ₫ | F23: 811,200 ₫ | G23: 936,000 ₫ | H23: 873,600 ₫ | I23: 873,600 ₫ | J23: 748,800 ₫ | K23: 790,400 ₫ | L23: 832,000 ₫ | O23: =SUM(tblExpenses[[#This Row],[THÁNG 1]:[THÁNG 12]]) -> 8,091,200 ₫
B24: Gas | C24: 1,040,000 ₫ | D24: 936,000 ₫ | E24: 832,000 ₫ | F24: 832,000 ₫ | G24: 873,600 ₫ | H24: 1,040,000 ₫ | I24: 1,144,000 ₫ | J24: 832,000 ₫ | K24: 894,400 ₫ | L24: 624,000 ₫ | O24: =SUM(tblExpenses[[#This Row],[THÁNG 1]:[THÁNG 12]]) -> 9,048,000 ₫
B25: Giải trí | C25: 2,558,400 ₫ | D25: 1,913,600 ₫ | E25: 1,206,400 ₫ | F25: 2,724,800 ₫ | G25: 956,800 ₫ | H25: 2,184,000 ₫ | I25: 1,747,200 ₫ | J25: 2,246,400 ₫ | K25: 2,745,600 ₫ | L25: 2,828,800 ₫ | O25: =SUM(tblExpenses[[#This Row],[THÁNG 1]:[THÁNG 12]]) -> 21,112,000 ₫
B26: Học phí | C26: 11,440,000 ₫ | D26: 11,440,000 ₫ | E26: 11,440,000 ₫ | F26: 11,440,000 ₫ | G26: 11,440,000 ₫ | H26: 11,440,000 ₫ | I26: 11,440,000 ₫ | J26: 11,440,000 ₫ | K26: 11,440,000 ₫ | L26: 11,440,000 ₫ | O26: =SUM(tblExpenses[[#This Row],[THÁNG 1]:[THÁNG 12]]) -> 114,400,000 ₫
B27: Tiết kiệm | C27: 4,160,000 ₫ | D27: 4,680,000 ₫ | E27: 6,240,000 ₫ | F27: 4,160,000 ₫ | G27: 4,160,000 ₫ | H27: 4,160,000 ₫ | I27: 5,200,000 ₫ | J27: 6,760,000 ₫ | K27: 4,160,000 ₫ | L27: 4,160,000 ₫ | O27: =SUM(tblExpenses[[#This Row],[THÁNG 1]:[THÁNG 12]]) -> 47,840,000 ₫
B28: TỔNG CHI PHÍ | C28: =SUBTOTAL(109,tblExpenses[THÁNG 1]) -> 73,944,000 ₫ | D28: =SUBTOTAL(109,tblExpenses[THÁNG 2]) -> 75,420,800 ₫ | E28: =SUBTOTAL(109,tblExpenses[THÁNG 3]) -> 75,857,600 ₫ | F28: =SUBTOTAL(109,tblExpenses[THÁNG 4]) -> 75,774,400 ₫ | G28: =SUBTOTAL(109,tblExpenses[THÁNG 5]) -> 74,297,600 ₫ | H28: =SUBTOTAL(109,tblExpenses[THÁNG 6]) -> 76,128,000 ₫ | I28: =SUBTOTAL(109,tblExpenses[THÁNG 7]) -> 80,537,600 ₫ | J28: =SUBTOTAL(109,tblExpenses[THÁNG 8]) -> 79,601,600 ₫ | K28: =SUBTOTAL(109,tblExpenses[THÁNG 9]) -> 76,107,200 ₫ | L28: =SUBTOTAL(109,tblExpenses[THÁNG 10]) -> 75,878,400 ₫ | M28: =SUBTOTAL(109,tblExpenses[THÁNG 11]) -> 0 | N28: =SUBTOTAL(109,tblExpenses[THÁNG 12]) -> 0 | O28: =SUBTOTAL(109,tblExpenses[TỔNG SỐ TỚI NGÀY HÔM NAY]) -> 763,547,200 ₫
